Cogmind - Beta 11 X7 --- EXPLORER MODE // 2021.10.05 @ 01:54:00 // Winter2019/RPGLIKE Player: jfk Result: Escaped! Performance ------------- Evolutions (9) 4500 Regions Visited (15) 3000 Robots Destroyed (243) 1215 Value Destroyed (12413) 12413 Prototype IDs (34) 680 Alien Tech Used (0) 0 Bonus (7831) 7831 TOTAL SCORE: 29639 Bonus ------- High Alert Combat Kills 4435 Follower Combat Kills 96 Aligned with FarCom 300 Win 3000 Cogmind --------- Core Integrity 1366/1500 Matter 300/300 Energy 1336/1340 System Corruption 0% Temperature Cool (4) Movement Walking (45) Location To Epsilon Eridani Parts ------- > --- POWER (3) -------- Enhanced Nuclear Core Light Quantum Reactor > --- PROPULSION (2) --- Potential Leg Potential Leg > --- UTILITY (11) ----- Advanced Power Amplifier Gravity Neutralizing Apparatus Advanced Terrain Scanner Modified TNC Femtoactuators Actuator Array Force Booster Advanced Force Field System Restoration Module > --- WEAPON (3) ------- Centrium Greatsword Enhanced Force Lance > --- INVENTORY (6) ---- Protomatter-83 Protomatter-72 Protomatter-94 Protomatter-85 Protomatter-79 Gamma Bomb Array Peak State ------------ > --- POWER ------------ Enhanced Nuclear Core Light Quantum Reactor > --- PROPULSION ------- Potential Leg Potential Leg > --- UTILITY ---------- Advanced Power Amplifier Gravity Neutralizing Apparatus Dimensional Manipulator Advanced Terrain Scanner Modified TNC Femtoactuators Actuator Array Force Booster Advanced Force Field System Restoration Module > --- WEAPON ----------- Centrium Greatsword Force Lance > --- INVENTORY -------- Protomatter Protomatter Protomatter Protomatter Gamma Bomb Array Thunder Hammer [Rating: 123] Favorites ----------- Power Enhanced Nuclear Core Engine Light Ion Engine Power Core Enhanced Nuclear Core Reactor Cold Fusion Reactor Propulsion Potential Leg Leg Potential Leg Wheel Wheel Utility Modified TNC Device Actuator Array Processor Modified TNC Protection Utility Shielding Weapon Greatsword Energy Gun Improved Medium Laser Energy Cannon Heavy Particle Cannon Ballistic Gun Heavy Assault Rifle Ballistic Cannon Assault Cannon Launcher Rocket Launcher Impact Weapon Thunder Hammer Slashing Weapon Greatsword Piercing Weapon Force Lance Build | -11 -10 -10 -9 -9 -9 -8 -8 -7 -7 -6 -5 -4 -3 -2 -1 ------- Run | Scr Mat Min Mat Min Exi Min Mat Fac Sto Fac Fac Fac Res Res Acc Slots Evolved 15 | . . . . . 8 . 1 1 . 3 . . . 2 . Power 2 | . . . . . 1 . . . . 1 . . . . . Propulsion 1 | . . . . . 1 . . . . . . . . . . Utility 10 | . . . . . 5 . 1 1 . 2 . . . 1 . Weapon 2 | . . . . . 1 . . . . . . . . 1 . Parts Attached 87 | . . 5 2 . 3 . 14 10 3 10 4 5 1 10 20 Power 20 | . . 1 . . . . 4 1 2 2 2 . . 2 6 Engine 3 | . . 1 . . . . 1 . 1 . . . . . . Core 10 | . . . . . . . 3 1 1 1 2 . . 1 1 Reactor 7 | . . . . . . . . . . 1 . . . 1 5 Propulsion 6 | . . . 1 . 2 . . 1 . . . . . . 2 Treads . | . . . . . . . . . . . . . . . . Leg 5 | . . . . . 2 . . 1 . . . . . . 2 Wheel 1 | . . . 1 . . . . . . . . . . . . Hover . | . . . . . . . . . . . . . . . . Flight . | . . . . . . . . . . . . . . . . Utility 39 | . . 2 1 . 1 . 4 6 1 8 2 4 1 3 6 Device 29 | . . . 1 . . . 1 4 . 8 1 4 1 3 6 Storage . | . . . . . . . . . . . . . . . . Processor 2 | . . . . . 1 . 1 . . . . . . . . Hackware . | . . . . . . . . . . . . . . . . Protection 8 | . . 2 . . . . 2 2 1 . 1 . . . . Artifact . | . . . . . . . . . . . . . . . . Weapon 22 | . . 2 . . . . 6 2 . . . 1 . 5 6 Energy Gun 1 | . . . . . . . 1 . . . . . . . . Energy Cannon 2 | . . . . . . . 2 . . . . . . . . Ballistic Gun 2 | . . 1 . . . . 1 . . . . . . . . Ballistic Cannon 1 | . . . . . . . 1 . . . . . . . . Launcher 7 | . . 1 . . . . 1 1 . . . . . 2 2 Special Weapon . | . . . . . . . . . . . . . . . . Impact Weapon 1 | . . . . . . . . . . . . . . 1 . Slashing Weapon 2 | . . . . . . . . 1 . . . . . 1 . Piercing Weapon 6 | . . . . . . . . . . . . 1 . 1 4 Special Melee Weapon . | . . . . . . . . . . . . . . . . Unidentified Prototypes 11 | . . . . . . . 1 2 1 1 . 1 . 2 3 Parts Lost 6 | . . . . . . . . 2 2 . . . . 1 1 Power . | . . . . . . . . . . . . . . . . Propulsion . | . . . . . . . . . . . . . . . . Utility 6 | . . . . . . . . 2 2 . . . . 1 1 Weapon . | . . . . . . . . . . . . . . . . Highest Loss Streak 2 | . . . . . . . . 2 1 . . . . 1 1 Average Slot Usage (%) 77 | . . 36 69 75 67 50 92 83 64 76 93 94 94 91 79 Engine 2 | . . 12 25 25 18 8 5 . . . . . . . . Core 8 | . . . . . . . 9 14 13 11 11 11 11 6 5 Reactor 2 | . . . . . . . . . . 2 5 5 5 5 4 Leg 10 | . . . . . 6 16 15 14 14 11 11 11 11 10 10 Device 30 | . . . 10 25 18 8 13 19 17 32 47 50 52 50 43 Processor 5 | . . . . . 2 8 15 10 7 5 5 5 5 5 5 Protection 4 | . . . . . . . 14 16 4 3 4 1 . . . Launcher 3 | . . 18 25 25 18 8 2 1 . . . . . . . Slashing Weapon 3 | . . . . . . . . 5 7 5 5 . . . 5 Piercing Weapon 1 | . . . . . . . . . . . . 4 5 4 4 Naked Turns 107 | . 80 27 . . . . . . . . . . . . . Heaviest Build 73 | . . 7 7 7 7 7 31 43 38 57 71 73 66 72 71 Greatest Support 77 | 3 3 8 21 21 71 71 71 74 74 74 74 74 74 74 77 Greatest Overweight (x) 3 | . . . . . . . . . . 3 . . . 1 2 Average Overweight (x) . | . . . . . . . . . . . . . . . . Largest Inventory Capacity 6 | . . . . . . . 6 6 6 6 6 6 6 6 6 Average Capacity 5 | . . . . . . . 5 6 6 6 6 6 6 6 6 Most Carried 6 | . . . . . . . 3 4 5 6 6 5 5 6 6 Average Carried 3 | . . . . . . . 1 2 3 3 4 4 4 4 4 Final Capacity 6 | . . . . . . . 6 6 6 6 6 6 6 6 6 Final Carried 6 | . . . . . . . 3 4 3 4 4 4 4 5 6 Class Distribution -------------------- 59% | Hacker-Gladiator 25% | Hacker-Mutant 15% | Hacker-Assassin Dominant Class ---------------- Hacker-Mutant | -10/Materials Hacker-Mutant | -10/Mines Hacker-Mutant | -9/Materials Hacker-Mutant | -9/Mines Hacker-Mutant | -9/Exiles Hacker-Mutant | -8/Mines Hacker-Mutant | -8/Materials Hacker-Gladiator | -7/Factory Hacker-Gladiator | -7/Storage Hacker-Gladiator | -6/Factory Hacker-Gladiator | -5/Factory Hacker-Assassin | -4/Factory Hacker-Assassin | -3/Research Hacker-Assassin | -2/Research Hacker-Gladiator | -1/Access Resources | -11 -10 -10 -9 -9 -9 -8 -8 -7 -7 -6 -5 -4 -3 -2 -1 ----------- Run | Scr Mat Min Mat Min Exi Min Mat Fac Sto Fac Fac Fac Res Res Acc Matter Collected 1740 | 111 . 156 92 225 . . 346 117 73 112 10 40 . 213 245 Remotely 57 | . . . . . . . 27 30 . . . . . . . Salvage Created 11128 | . . 43 36 34 . . 350 705 852 1730 435 85 . 3819 3039 Parts 638 | . . 2 11 . . . 30 40 48 109 27 4 . 204 163 Haulers Intercepted 5 | . . . . . . . . 1 . . . . . 3 1 Recyclers Shooed 6 | . . 1 . . . . 1 . . . . . . 4 . Parts Field Recycled . | . . . . . . . . . . . . . . . . Retrieved Matter . | . . . . . . . . . . . . . . . . Parts Self-Destructed . | . . . . . . . . . . . . . . . . Prevented . | . . . . . . . . . . . . . . . . Kills | -11 -10 -10 -9 -9 -9 -8 -8 -7 -7 -6 -5 -4 -3 -2 -1 ------- Run | Scr Mat Min Mat Min Exi Min Mat Fac Sto Fac Fac Fac Res Res Acc Combat Hostiles Destroyed 220 | . . 1 6 19 . . 10 18 17 36 12 2 . 50 49 Melee 174 | . . . . . . . 1 18 17 36 12 2 . 39 49 Guns 1 | . . . . . . . 1 . . . . . . . . Cannons 4 | . . . . . . . 4 . . . . . . . . AOE 37 | . . 1 6 19 . . 4 . . . . . . 7 . Classes Destroyed 18 | . . 1 2 1 . . 5 4 . 1 . . . 2 2 Worker 16 | . . . . . . . 1 . 2 6 . . . 5 2 Builder 3 | . . . . . . . . . . . . . . 3 . Tunneler 3 | . . . 1 . . . . . . . . . . 1 1 Hauler 5 | . . . . . . . . 1 . . . . . 3 1 Recycler 6 | . . . . . . . . 1 . . . . . 5 . Mechanic 2 | . . . . . . . . . . . . . . . 2 Operator 4 | . . . . . . . 2 . . 1 . . . . 1 Watcher 3 | . . . . . . . 1 . . . . . . 1 1 Swarmer 42 | . . . 4 . . . . 2 1 9 6 . . 13 7 Grunt 74 | . . 1 2 . . . 4 9 4 17 2 2 . 14 19 Brawler 3 | . . . . . . . . 1 . 1 . . . . 1 Duelist 5 | . . . . . . . . . . 1 . . . 1 3 Sentry 27 | . . . . . . . 4 3 8 5 . . . 4 3 Hunter 18 | . . . . . . . 2 1 1 1 . . . 4 9 Programmer 28 | . . . . . . . . 2 3 2 4 . . 11 6 Heavy 1 | . . . . . . . . . . . . . . . 1 Executioner 3 | . . . . . . . . . . . . . . 3 . Assembled 19 | . . . . 19 . . . . . . . . . . . Best Kill Streak 20 | . . 1 5 19 . . 7 6 3 7 7 2 . 20 9 Combat Bots Only 19 | . . 1 4 19 . . 4 3 3 7 7 2 . 10 7 Max Kills in Single Turn 7 | . . 1 2 4 . . 2 1 1 1 1 1 . 7 1 Gunslinging . | . . . . . . . . . . . . . . . . Exploded 4 | . . 1 2 4 . . 1 . . . . . . 4 . Melee 1 | . . . . . . . 1 1 1 1 1 1 . 1 1 Uniques/NPCs Destroyed . | . . . . . . . . . . . . . . . . Combat | -11 -10 -10 -9 -9 -9 -8 -8 -7 -7 -6 -5 -4 -3 -2 -1 -------- Run | Scr Mat Min Mat Min Exi Min Mat Fac Sto Fac Fac Fac Res Res Acc Damage Taken 11155 | . 77 76 143 448 . . 450 1447 946 1827 320 51 . 3267 2103 Core 8423 | . 77 69 121 385 . . 284 902 689 1373 233 40 . 2607 1643 Absorbed by Shields 4438 | . . . . . . . . 471 459 167 91 15 . 1500 1735 Redirected to Core 6793 | . . 15 70 196 . . 256 763 540 1143 216 40 . 2132 1422 Core Remaining (%) 80 | 100 . 88 . . . 42 45 . 100 95 95 100 100 25 91 Volleys Fired 81 | . . 13 15 12 . . 30 . . . . . . 7 4 Largest 2 | . . 1 1 1 . . 2 . . . . . . 1 1 Hottest 98 | . . 33 33 33 . . 98 . . . . . . 80 80 Shots Fired 93 | . . 13 15 12 . . 42 . . . . . . 7 4 Gun 17 | . . 5 . . . . 12 . . . . . . . . Cannon 22 | . . . . . . . 22 . . . . . . . . Launcher 54 | . . 8 15 12 . . 8 . . . . . . 7 4 Special . | . . . . . . . . . . . . . . . . Kinetic 17 | . . 5 . . . . 12 . . . . . . . . Thermal 22 | . . . . . . . 22 . . . . . . . . Explosive 43 | . . 8 15 12 . . 8 . . . . . . . . Electromagnetic 11 | . . . . . . . . . . . . . . 7 4 Robot Hit Streak 32 | . . 6 11 6 . . 32 . . . . . . 7 6 Robot Miss Streak 3 | . . 2 . 3 . . 1 . . . . . . 3 2 Penetration Max . | . . . . . . . . . . . . . . . . Secondary Targets . | . . . . . . . . . . . . . . . . Shots Hit Robots 625 | . . 11 6 8 . . 31 48 56 110 23 4 . 167 161 Core Hits 425 | . . 6 11 35 . . 25 22 19 47 12 4 . 159 85 Critical Kills . | . . . . . . . . . . . . . . . . Critical Parts Destroyed 3 | . . . . . . . . . . . . . . 3 . Critical Strikes 47 | . . . . . . . . 5 3 12 2 . . 16 9 Smash 3 | . . . . . . . . . . . . . . 3 . Sever 31 | . . . . . . . . 5 3 12 2 . . 2 7 Puncture 13 | . . . . . . . . . . . . . . 11 2 Melee Attacks 683 | . . . . . . . . 49 63 120 25 8 1 187 230 Impact 39 | . . . . . . . . . . . . . . 39 . Slashing 453 | . . . . . . . . 49 63 120 25 . . 24 172 Piercing 191 | . . . . . . . . . . . . 8 1 124 58 Sneak Attacks 26 | . . . . . . . . 2 2 7 . . . 9 6 Combat Hostiles 2 | . . . . . . . . . . . . . . 2 . Follow-up Attacks 43 | . . . . . . . . . . . . . . 17 26 Damage Inflicted 44027 | . . 326 649 1308 . . 1439 2742 3196 6557 1407 187 . 13178 13038 Guns 152 | . . 44 . . . . 108 . . . . . . . . Cannons 408 | . . . . . . . 408 . . . . . . . . Explosions 5485 | . . 277 619 1308 . . 812 . . . . . . 2210 259 Melee 37814 | . . . . . . . . 2742 3196 6557 1407 187 . 10946 12779 Ramming 168 | . . 5 30 . . . 111 . . . . . . 22 . Kinetic 152 | . . 44 . . . . 108 . . . . . . . . Thermal 1031 | . . . . . . . 645 . . . . . . 386 . Explosive 2779 | . . 277 619 1308 . . 575 . . . . . . . . Electromagnetic 2083 | . . . . . . . . . . . . . . 1824 259 Impact 1220 | . . . . . . . . . . . . . . 1220 . Slashing 27161 | . . . . . . . . 2742 3196 6557 1407 . . 2030 11229 Piercing 9433 | . . . . . . . . . . . . 187 . 7696 1550 Highest Corruption 7 | . . . 1 1 1 1 . 4 7 3 1 . . 5 2 Average Corruption 2 | . . . 1 1 1 1 . 3 5 1 1 . . 2 1 Corruption Purged 10 | . . . . . . . . . . . . . . 6 4 Effects 54 | . . . 1 . 1 . . 10 21 13 1 . . 7 . Message Errors 22 | . . . . . 1 . . 6 5 5 1 . . 4 . Matter Fused 11 | . . . . . . . . 2 6 2 . . . 1 . Heat Flow Errors 7 | . . . . . . . . 2 3 . . . . 2 . Energy Discharges 8 | . . . . . . . . . 3 5 . . . . . Data Loss (minor) 5 | . . . 1 . . . . . 3 1 . . . . . Data Loss (major) 1 | . . . . . . . . . 1 . . . . . . Overload Shots . | . . . . . . . . . . . . . . . . Overflow Damage 4484 | . . 5 47 37 . . 69 203 564 750 56 . . 1373 1380 Projectiles . | . . . . . . . . . . . . . . . . Explosions 160 | . . 5 47 37 . . 69 . . . . . . 2 . Melee 4324 | . . . . . . . . 203 564 750 56 . . 1371 1380 Knockbacks 11 | . . . . . . . . . . . . . . 11 . Impact 7 | . . . . . . . . . . . . . . 7 . Kinetic . | . . . . . . . . . . . . . . . . Secondary 4 | . . . . . . . . . . . . . . 4 . Self-Inflicted Damage 174 | . . 27 46 73 . . 5 . . . . . . . 23 Shots 11 | . . 1 1 3 . . 1 . . . . . . . 5 Rammed 5 | . . 3 2 . . . . . . . . . . . . Targets Rammed 16 | . . 3 2 . . . 10 . . . . . . 1 . Kicked 11 | . . . . . . . 10 . . . . . . 1 . Crushed . | . . . . . . . . . . . . . . . . Highest Temperature 383 | . . 12 12 56 . . 383 176 188 . . . . 253 44 Average Temperature 107 | . . 5 6 22 . . 156 82 98 . . . . 79 22 Received Heat Transfer 2517 | . . 27 54 100 . . 126 292 435 783 68 16 . 225 391 Effects 3 | . . . . . . . 3 . . . . . . . . Energy Bleed 1 | . . . . . . . 1 . . . . . . . . Interference 2 | . . . . . . . 2 . . . . . . . . Siege Activations . | . . . . . . . . . . . . . . . . Robots Corrupted 3 | . . . . . . . . . . . . . . 3 . Combat Hostiles 3 | . . . . . . . . . . . . . . 3 . Parts Fried 13 | . . . . . . . . . . . . . . 13 . Impact Corruptions 13 | . . . . . . . . . . . . . . 13 . Robots Melted . | . . . . . . . . . . . . . . . . Combat Hostiles . | . . . . . . . . . . . . . . . . Parts Melted 3 | . . . . . . . . . . . . . . 3 . Heat Transferred 1229 | . . . . . . . 779 . . . . . . 450 . Parts Sabotaged . | . . . . . . . . . . . . . . . . Parts Stolen . | . . . . . . . . . . . . . . . . Parts Stripped . | . . . . . . . . . . . . . . . . Power Chain Reactions 6 | . . . . . . . . . . . . . . 6 . Missiles Intercepted . | . . . . . . . . . . . . . . . . Alert | -11 -10 -10 -9 -9 -9 -8 -8 -7 -7 -6 -5 -4 -3 -2 -1 ------- Run | Scr Mat Min Mat Min Exi Min Mat Fac Sto Fac Fac Fac Res Res Acc Peak Influence 2188 | . 81 91 412 225 . . 461 802 607 590 511 161 79 1728 2188 Initial 786 | . . 22 24 113 . . . 83 264 198 123 75 62 33 786 Average 513 | . 17 48 220 189 . . 193 284 431 375 361 102 73 560 1475 Maximum Alert Level 5 | . . . 2 1 . . 2 3 2 2 2 . . 5 5 Low Security (%) 28 | 100 100 100 51 51 . 100 55 58 . 1 21 100 100 18 . Level 1 25 | . . . 39 48 . . 35 6 34 59 35 . . 13 . Level 2 27 | . . . 8 . . . 9 27 65 38 43 . . 48 . Level 3 5 | . . . . . . . . 7 . . . . . 5 26 Level 4 5 | . . . . . . . . . . . . . . 10 29 Level 5 7 | . . . . . . . . . . . . . . 3 43 High Security . | . . . . . . . . . . . . . . . . Max Security . | . . . . . . . . . . . . . . . . Squads Dispatched 52 | . . . 3 . . . 3 4 3 8 4 . . 11 16 Investigation 8 | . . . 1 . . . . 1 . 1 1 . . . 4 Extermination 12 | . . . . . . . . 1 2 3 1 . . 4 1 Reinforcement 18 | . . . 2 . . . 3 2 1 2 1 . . 4 3 Assault 8 | . . . . . . . . . . 2 1 . . . 5 Garrison 6 | . . . . . . . . . . . . . . 3 3 Intercept . | . . . . . . . . . . . . . . . . Construction Impeded 2 | . . . . . . . 1 . . . . . . 1 . Haulers Reinforced 2 | . . . . . . . . . . . . . . 1 1 Active Scanning Responses . | . . . . . . . . . . . . . . . . Cargo Convoy Interrupts 2 | . . . . . . . . 1 . . . . . 1 . Stealth | -11 -10 -10 -9 -9 -9 -8 -8 -7 -7 -6 -5 -4 -3 -2 -1 --------- Run | Scr Mat Min Mat Min Exi Min Mat Fac Sto Fac Fac Fac Res Res Acc Distress Signals 23 | . . . 2 . . . 3 2 3 1 2 . . 7 3 Communications Jammed . | . . . . . . . . . . . . . . . . Distress Signals . | . . . . . . . . . . . . . . . . Times Spotted 444 | . 6 5 19 23 . 3 26 37 24 62 17 3 1 108 110 Peak Tracking Total 18 | . 4 2 9 18 . 3 9 15 5 7 6 2 1 17 9 Tactical Retreats 53 | . 2 2 4 1 . . 3 4 2 6 2 . . 8 19 Traps | -11 -10 -10 -9 -9 -9 -8 -8 -7 -7 -6 -5 -4 -3 -2 -1 ------- Run | Scr Mat Min Mat Min Exi Min Mat Fac Sto Fac Fac Fac Res Res Acc Traps Triggered 22 | . . . . . . . . 4 4 4 2 . . 2 6 Indirectly . | . . . . . . . . . . . . . . . . Trap Hack Attempts . | . . . . . . . . . . . . . . . . Triggered . | . . . . . . . . . . . . . . . . Disarmed . | . . . . . . . . . . . . . . . . Reprogrammed . | . . . . . . . . . . . . . . . . Reused . | . . . . . . . . . . . . . . . . Traps Extracted . | . . . . . . . . . . . . . . . . Installed . | . . . . . . . . . . . . . . . . Triggered . | . . . . . . . . . . . . . . . . Machines | -11 -10 -10 -9 -9 -9 -8 -8 -7 -7 -6 -5 -4 -3 -2 -1 ---------- Run | Scr Mat Min Mat Min Exi Min Mat Fac Sto Fac Fac Fac Res Res Acc Machines Disabled 11 | . . 1 2 . . . 1 . 3 . . . . 2 2 Max in Single Turn 2 | . . 1 1 . . . 1 . 1 . . . . 2 1 Garrison Access 5 | . . . . . . . . 1 . . 1 . . . 3 Machines Sabotaged . | . . . . . . . . . . . . . . . . Garrisons Compromised . | . . . . . . . . . . . . . . . . Overloaded Fab Kills . | . . . . . . . . . . . . . . . . Fab Network Shutdowns . | . . . . . . . . . . . . . . . . Hacking | -11 -10 -10 -9 -9 -9 -8 -8 -7 -7 -6 -5 -4 -3 -2 -1 --------- Run | Scr Mat Min Mat Min Exi Min Mat Fac Sto Fac Fac Fac Res Res Acc Machines Accessed 25 | . 1 . 2 . 1 . 1 2 5 5 2 . . 1 5 Terminals 18 | . 1 . 2 . . . 1 1 5 4 1 . . 1 2 Fabricators 1 | . . . . . . . . . . 1 . . . . . Repair Stations . | . . . . . . . . . . . . . . . . Recycling Units . | . . . . . . . . . . . . . . . . Scanalyzers . | . . . . . . . . . . . . . . . . Garrison Access 5 | . . . . . . . . 1 . . 1 . . . 3 Total Hacks 48 | . 2 . 3 . 1 . 3 6 6 9 3 . . 2 13 Successful 21 | . 1 . 1 . 1 . . 3 5 4 2 . . . 4 Failed 27 | . 1 . 2 . . . 3 3 1 5 1 . . 2 9 Catastrophic 7 | . . . 1 . . . 1 . . 1 1 . . 1 2 Database Lockouts . | . . . . . . . . . . . . . . . . Manual 23 | . 2 . 3 . 1 . 3 2 . 6 2 . . 2 2 Terminals 31 | . 2 . 3 . . . 3 3 6 7 2 . . 2 3 Fabricators 2 | . . . . . . . . . . 2 . . . . . Repair Stations . | . . . . . . . . . . . . . . . . Recycling Units . | . . . . . . . . . . . . . . . . Scanalyzers . | . . . . . . . . . . . . . . . . Garrison Access 14 | . . . . . . . . 3 . . 1 . . . 10 Terminal Hacks 13 | . 1 . 1 . 1 . . 2 5 1 1 . . . 1 Robot Analysis 1 | . . . . . . . . 1 . . . . . . . Open Door 6 | . . . . . . . . . 5 . . . . . 1 Level Access Points 1 | . . . . . . . . . . . 1 . . . . Branch Access Points 4 | . 1 . 1 . . . . 1 . 1 . . . . . EX-Prototype ID Bank 1 | . . . . . 1 . . . . . . . . . . Fabricator Hacks 1 | . . . . . . . . . . 1 . . . . . Build 1 | . . . . . . . . . . 1 . . . . . Repair Station Hacks . | . . . . . . . . . . . . . . . . Recycling Unit Hacks . | . . . . . . . . . . . . . . . . Scanalyzer . | . . . . . . . . . . . . . . . . Garrison Access Hacks 5 | . . . . . . . . 1 . . 1 . . . 3 Seal Access 5 | . . . . . . . . 1 . . 1 . . . 3 Unauthorized Hacks 2 | . . . . . . . . . . 2 . . . . . Terminals 2 | . . . . . . . . . . 2 . . . . . Botnet 2 | . . . . . . . . . . 2 . . . . . Fabricators . | . . . . . . . . . . . . . . . . Repair Stations . | . . . . . . . . . . . . . . . . Recycling Units . | . . . . . . . . . . . . . . . . Scanalyzers . | . . . . . . . . . . . . . . . . Garrison Access . | . . . . . . . . . . . . . . . . Data Cores Recovered 3 | . . . . . . . 1 . . 1 . . . . 1 Used 2 | . . . . . . . 1 . . 1 . . . . . Hacking Detections 14 | . . . 1 . . . 1 1 2 3 1 . . 1 4 Full Trace Events 5 | . . . 1 . . . 1 . . 1 1 . . . 1 Feedback Events 2 | . . . 1 . . . . . . . . . . . 1 Corruption 2 | . . . 1 . . . . . . . . . . . 1 Feedback Blocked . | . . . . . . . . . . . . . . . . Robot Schematics Acquired . | . . . . . . . . . . . . . . . . Robots Built 1 | . . . . . . . . . . 1 . . . . . Matter 153 | . . . . . . . . . . 153 . . . . . Time 40 | . . . . . . . . . . 40 . . . . . Total Robot Build Rating 1 | . . . . . . . . . . 1 . . . . . Part Schematics Acquired . | . . . . . . . . . . . . . . . . Parts Built . | . . . . . . . . . . . . . . . . Matter . | . . . . . . . . . . . . . . . . Time . | . . . . . . . . . . . . . . . . Total Part Build Rating . | . . . . . . . . . . . . . . . . Parts Repaired . | . . . . . . . . . . . . . . . . Time . | . . . . . . . . . . . . . . . . Parts Recycled . | . . . . . . . . . . . . . . . . Recycled Matter . | . . . . . . . . . . . . . . . . Retrieved Matter . | . . . . . . . . . . . . . . . . Retrieved Components . | . . . . . . . . . . . . . . . . Parts Scanalyzed . | . . . . . . . . . . . . . . . . Part Schematics Acquired . | . . . . . . . . . . . . . . . . Parts Damaged . | . . . . . . . . . . . . . . . . Bothacking | -11 -10 -10 -9 -9 -9 -8 -8 -7 -7 -6 -5 -4 -3 -2 -1 ------------ Run | Scr Mat Min Mat Min Exi Min Mat Fac Sto Fac Fac Fac Res Res Acc Used RIF Installer . | . . . . . . . . . . . . . . . . Robots Hacked . | . . . . . . . . . . . . . . . . Non-combat . | . . . . . . . . . . . . . . . . Combat . | . . . . . . . . . . . . . . . . Robot Hacks Applied . | . . . . . . . . . . . . . . . . Relay Couplers Released . | . . . . . . . . . . . . . . . . Robots Rewired 2 | . . . . . . . . . . 2 . . . . . Allies Hacked . | . . . . . . . . . . . . . . . . Hacks Repelled . | . . . . . . . . . . . . . . . . Allies | -11 -10 -10 -9 -9 -9 -8 -8 -7 -7 -6 -5 -4 -3 -2 -1 -------- Run | Scr Mat Min Mat Min Exi Min Mat Fac Sto Fac Fac Fac Res Res Acc Total Allies 6 | . . . . 3 . . . . . 3 . . . . . Largest Group 3 | . . . . 3 3 . . . . 2 . . . . . Highest-Rated Group 64 | . . . . 40 40 . . . . 64 . . . . . Highest-Rated Ally 32 | . . . . 16 16 . . . . 32 . . . . . Total Orders . | . . . . . . . . . . . . . . . . Ally Attacks 19 | . . . . 9 . . . . . 10 . . . . . Total Damage 424 | . . . . 37 . . . . . 387 . . . . . Kills 5 | . . . . 2 . . . . . 3 . . . . . Allies Corrupted . | . . . . . . . . . . . . . . . . Allies Melted . | . . . . . . . . . . . . . . . . Intel | -11 -10 -10 -9 -9 -9 -8 -8 -7 -7 -6 -5 -4 -3 -2 -1 ------- Run | Scr Mat Min Mat Min Exi Min Mat Fac Sto Fac Fac Fac Res Res Acc Robot Analysis Total 1 | . . . . . . . . 1 . . . . . . . Derelict Logs Recovered 1 | . . 1 . . . . . . . . . . . . . Drone Launches . | . . . . . . . . . . . . . . . . Drone Recoveries . | . . . . . . . . . . . . . . . . Exploration | -11 -10 -10 -9 -9 -9 -8 -8 -7 -7 -6 -5 -4 -3 -2 -1 ------------- Run | Scr Mat Min Mat Min Exi Min Mat Fac Sto Fac Fac Fac Res Res Acc Turns Passed 8696 | 13 80 397 189 286 292 36 502 1094 773 1898 417 193 166 1011 1349 Spaces Moved 9173 | 25 160 696 268 439 241 40 419 1357 522 1771 448 265 172 752 1598 Core 1640 | 25 160 696 202 432 118 . . . . 6 . . . . 1 Treads . | . . . . . . . . . . . . . . . . Legs 7460 | . . . . . 123 40 419 1357 522 1765 448 265 172 752 1597 Wheels 73 | . . . 66 7 . . . . . . . . . . . Hover . | . . . . . . . . . . . . . . . . Flight . | . . . . . . . . . . . . . . . . Fastest Speed 45 | 50 50 50 50 50 50 90 45 45 90 45 45 45 90 45 45 Average Speed 62 | 50 50 50 57 50 70 90 71 63 90 74 69 57 90 50 47 Slowest Speed 200 | 50 50 50 80 80 90 90 90 90 90 200 90 90 90 180 180 Overloaded Moves 4155 | . . . . . . . 168 800 . 600 207 190 . 663 1527 Propulsion Burnouts . | . . . . . . . . . . . . . . . . Robots Hopped . | . . . . . . . . . . . . . . . . Cave-ins Triggered 3 | . . . . . . . . . . . . . . 2 1 Exploration Rate (%) 44 | 3 32 98 39 96 61 24 47 36 87 60 24 11 10 32 55 Regions Visited 15 Branch Regions 5 Pre-discovered Areas 1 | . . 1 . . . . . . . . . . . . . Known Exits Taken 15 | 1 1 1 1 1 1 1 1 1 1 1 1 1 1 1 . Unknown Exits Taken . | . . . . . . . . . . . . . . . . Scrap Searched . | . . . . . . . . . . . . . . . . Spaces Dug 99 | . . . 24 . . . 3 . . 10 1 3 1 13 44 Terrain Destroyed 433 | . . 77 149 94 . . 33 . . 10 1 3 1 21 44 Melee 72 | . . . . . . . . . . 10 1 3 1 13 44 Projectile 5 | . . . . . . . 5 . . . . . . . . AOE 356 | . . 77 149 94 . . 28 . . . . . . 8 . Terrain Rammed . | . . . . . . . . . . . . . . . . Walls Destroyed . | . . . . . . . . . . . . . . . . Machines Disabled . | . . . . . . . . . . . . . . . . Actions | -11 -10 -10 -9 -9 -9 -8 -8 -7 -7 -6 -5 -4 -3 -2 -1 --------- Run | Scr Mat Min Mat Min Exi Min Mat Fac Sto Fac Fac Fac Res Res Acc Total 11172 | 24 159 731 286 491 361 39 574 1494 702 2138 522 295 182 1155 2019 Wait 581 | . . 8 . 40 118 . 77 9 28 118 15 . 7 126 35 Move 9157 | 24 159 695 267 438 240 39 419 1356 521 1770 447 264 171 751 1596 Hop . | . . . . . . . . . . . . . . . . Pick Up 60 | . . . . . . . 3 10 6 13 6 5 1 7 9 Fast Attach 58 | . . 5 2 . 3 . 13 4 3 6 2 . . 6 14 Attach 20 | . . . . . . . . 5 . 4 1 4 1 2 3 Detach 8 | . . . . . . . 1 . . . . . . 2 5 Swap 9 | . . . . . . . 1 1 . . 1 1 . 2 3 Drop 81 | . . 3 . 1 . . 7 12 9 11 9 5 1 7 16 Fire 81 | . . 13 15 12 . . 30 . . . . . . 7 4 Melee 600 | . . . . . . . . 49 63 120 25 8 1 156 178 Ram 5 | . . 3 2 . . . . . . . . . . . . Kick 10 | . . . . . . . 9 . . . . . . 1 . Crush . | . . . . . . . . . . . . . . . . Escape Stasis 1 | . . . . . . . . . . . . . . . 1 Rewire 24 | . . . . . . . . . . 18 . . . 6 . Trap . | . . . . . . . . . . . . . . . . Miscellaneous 477 | . . 4 . . . . 14 48 72 78 16 8 . 82 155 Route ------- -11/Scrapyard -10/Materials (discovered 4 exits: *Mat x2 / *Min x2) -10/Mines (discovered 2 exits: *Mat x2) -9/Materials (discovered 2 exits: *Mat / *Min) -9/Mines (discovered 3 exits: *Mat x2 / *Exi) -9/Exiles -8/Mines -8/Materials -7/Factory (discovered 6 exits: *Fac x2 / *Sto x2 / Low x2) -7/Storage -6/Factory (discovered 3 exits: *Fac / *Low x2) -5/Factory (discovered 5 exits: *Fac x4 / Upp) -4/Factory -3/Research -2/Research (discovered 2 exits: *Acc x2) -1/Access (discovered 2 exits: *Sur / Com) To Epsilon Eridani History --------- Turn | Location | Event 5 | -11/Scrapyard | Identified exit to Materials 5 | -11/Scrapyard | Discovered exit to Materials (range 15) 14 | -11/Scrapyard | Entered Materials 34 | -10/Materials | Identified exit to Mines 38 | -10/Materials | Identified exit to Materials 38 | -10/Materials | Discovered exit to Materials (range 5) 82 | -10/Materials | Discovered exit to Materials (range 13) 94 | -10/Materials | Entered Mines 118 | -10/Mines | Joined a pair of Derelicts in attacking an 0b10 outpost 177 | -10/Mines | Discovered exit to Materials (range 8) 189 | -10/Mines | Received a Rocket Launcher from a helpful Derelict 205 | -10/Mines | Learned location of Zion (-6) 233 | -10/Mines | Found a hidden stash of uninstalled traps 297 | -10/Mines | Discovered exit to Materials (range 5) 320 | -10/Mines | Build established: Hacker-Mutant 491 | -10/Mines | Entered Materials 493 | -9/Materials | Reached level 2 493 | -9/Materials | Reached level 3 535 | -9/Materials | Reached level 4 560 | -9/Materials | Identified exit to Materials 560 | -9/Materials | Discovered exit to Materials (range 11) 578 | -9/Materials | Identified exit to Mines 680 | -9/Materials | Entered Mines 681 | -9/Mines | Assembled infested the area 682 | -9/Mines | Reached level 5 693 | -9/Mines | Core integrity fell below 50% 699 | -9/Mines | Core integrity fell below 20% 715 | -9/Mines | Met a Derelict bent on vengeance 735 | -9/Mines | Destroyed 19 combat bots 798 | -9/Mines | Assisted by bots powering up and referring to "LRC-V3" 813 | -9/Mines | Discovered exit to Materials (range 8) 868 | -9/Mines | Discovered exit to Materials (range 10) 923 | -9/Mines | Deemed a non-threat by the Exiles lab entrance 924 | -9/Mines | Identified exit to Exiles 924 | -9/Mines | Discovered exit to Exiles (range 5) 966 | -9/Mines | Entered Exiles 966 | -9/Exiles | Accompanied by 3 allies 979 | -9/Exiles | Met 8R-AWN 1105 | -9/Exiles | Met EX-HEX 1120 | -9/Exiles | Met EX-BIN 1127 | -9/Exiles | Aligned with FarCom system 1128 | -9/Exiles | Given EX-Vault access code 1139 | -9/Exiles | Opened EX-Vault 1144 | -9/Exiles | Upgraded with Propulsion slot (x1) 1144 | -9/Exiles | Found Potential Leg 1146 | -9/Exiles | Found Potential Leg 1150 | -9/Exiles | Upgraded with Power slot (x1) 1150 | -9/Exiles | Upgraded with Utility slot (x5) 1150 | -9/Exiles | Upgraded with Weapon slot (x1) 1150 | -9/Exiles | Found Modified TNC 1171 | -9/Exiles | Warned to stay clear of 0b10 Research branches 1198 | -9/Exiles | Met EX-DEC 1251 | -9/Exiles | Identified exit to Mines 1251 | -9/Exiles | Discovered exit to Mines (range 10) 1258 | -9/Exiles | Stole two prototypes: Potential Leg, Modified TNC 1258 | -9/Exiles | Entered Mines 1260 | -8/Mines | Reached level 6 1288 | -8/Mines | Discovered exit to Materials (range 4) 1294 | -8/Mines | Entered Materials 1295 | -8/Materials | Core integrity fell below 50% 1296 | -8/Materials | Reached level 7 1496 | -8/Materials | Reached level 8 1659 | -8/Materials | Upgraded with Utility slot (x1) 1791 | -8/Materials | Identified exit to Factory 1791 | -8/Materials | Discovered exit to Factory (range 8) 1796 | -8/Materials | Entered Factory 1797 | -7/Factory | Core integrity fell below 50% 1798 | -7/Factory | FarCom data flow suspended 1798 | -7/Factory | Reached level 9 1798 | -7/Factory | Reached level 10 1855 | -7/Factory | Upgraded with Utility slot (x1) 1866 | -7/Factory | Identified exit to Factory 1866 | -7/Factory | Discovered exit to Factory (range 5) 2055 | -7/Factory | Identified exit to Storage 2055 | -7/Factory | Identified exit to Lower Caves 2327 | -7/Factory | Build established: Hacker-Gladiator 2411 | -7/Factory | Reached level 11 2502 | -7/Factory | Cargo convoy interrupted 2775 | -7/Factory | Reached level 12 2872 | -7/Factory | Discovered exit to Factory (range 6) 2890 | -7/Factory | Entered Storage 2892 | -7/Storage | Reached level 13 3250 | -7/Storage | Reached level 14 3571 | -7/Storage | Discovered exit to Factory (range 15) 3663 | -7/Storage | Entered Factory 3665 | -6/Factory | Reached level 15 3872 | -6/Factory | Reached level 16 3946 | -6/Factory | Upgraded with Power slot (x1) 3946 | -6/Factory | Upgraded with Utility slot (x2) 4013 | -6/Factory | First assault squad dispatched 4207 | -6/Factory | Reached level 17 4271 | -6/Factory | Destroyed 7 combat bots 4588 | -6/Factory | Identified exit to Lower Caves 4819 | -6/Factory | Identified exit to Factory 4819 | -6/Factory | Discovered exit to Factory (range 7) 4896 | -6/Factory | Reached level 18 5258 | -6/Factory | Fabricated K-01 Serf (x1) 5561 | -6/Factory | Entered another Factory area 5563 | -5/Factory | Reached level 19 5666 | -5/Factory | Reached level 20 5689 | -5/Factory | Destroyed 7 combat bots 5861 | -5/Factory | First assault squad dispatched 5869 | -5/Factory | Identified exit to Upper Caves 5869 | -5/Factory | Discovered exit to Upper Caves (range 15) 5898 | -5/Factory | Identified exit to Factory 5919 | -5/Factory | Spotted B-75 Beast 5978 | -5/Factory | Entered another Factory area 5980 | -4/Factory | Reached level 21 6100 | -4/Factory | Identified exit to Research 6100 | -4/Factory | Discovered exit to Research (range 20) 6171 | -4/Factory | Entered Research 6173 | -3/Research | Reached level 22 6173 | -3/Research | Reached level 23 6281 | -3/Research | Build established: Hacker-Assassin 6306 | -3/Research | Identified exit to Research 6306 | -3/Research | Discovered exit to Research (range 15) 6337 | -3/Research | Entered another Research area 6339 | -2/Research | Reached level 24 6339 | -2/Research | Reached level 25 6524 | -2/Research | Reached level 26 6544 | -2/Research | Garrison activated, responded to threat 6562 | -2/Research | Found Gamma Bomb Array 6619 | -2/Research | Destroyed 9 combat bots 6647 | -2/Research | Identified exit to Access 6647 | -2/Research | Discovered exit to Access (range 19) 6697 | -2/Research | Reached level 27 6751 | -2/Research | Spotted B-90 Cyclops 6834 | -2/Research | Spotted B-90 Cyclops 7006 | -2/Research | Reached level 28 7067 | -2/Research | Crushed by falling debris 7068 | -2/Research | Crushed by falling debris 7204 | -2/Research | Cargo convoy interrupted 7204 | -2/Research | Spotted Executioner 7204 | -2/Research | Spotted Executioner 7204 | -2/Research | Spotted Executioner 7208 | -2/Research | Reached level 29 7212 | -2/Research | Destroyed Executioner 7240 | -2/Research | Upgraded with Utility slot (x1) 7240 | -2/Research | Upgraded with Weapon slot (x1) 7241 | -2/Research | Found Prototype Slashing Weapon 7241 | -2/Research | Identified Centrium Greatsword 7255 | -2/Research | Destroyed Executioner 7263 | -2/Research | Core integrity fell below 50% 7273 | -2/Research | Destroyed Executioner 7301 | -2/Research | Reached level 30 7313 | -2/Research | Core integrity fell below 20% 7325 | -2/Research | Discovered exit to Access (range 11) 7348 | -2/Research | Entered Access 7349 | -1/Access | Core integrity fell below 50% 7350 | -1/Access | Reached level 31 7355 | -1/Access | Destroyed 10 combat bots 7524 | -1/Access | Reached level 32 7540 | -1/Access | Build established: Hacker-Gladiator 7598 | -1/Access | First assault squad dispatched 7774 | -1/Access | Reached level 33 7934 | -1/Access | Found Prototype Device 7934 | -1/Access | Identified Femtoactuators 8053 | -1/Access | Spotted B-99 Colossus 8073 | -1/Access | Garrison activated, responded to threat 8103 | -1/Access | Reached level 34 8133 | -1/Access | Destroyed 7 combat bots 8265 | -1/Access | Spotted B-99 Colossus 8270 | -1/Access | Identified exit to Command 8270 | -1/Access | Discovered exit to Command (range 20) 8336 | -1/Access | Found Unknown Piercing Weapon 8336 | -1/Access | Identified Enh. Force Lance 8501 | -1/Access | Destroyed 7 combat bots 8518 | -1/Access | Spotted B-99 Colossus 8653 | -1/Access | Crushed by falling debris 8690 | -1/Access | Identified exit to Surface 8690 | -1/Access | Discovered exit to Surface (range 7) 8697 | *** | Escaped! Last Messages --------------- 08606_ Slug penetrates Wall. 08606_ Penetrated by Slug. 08607_ Destroyed Adv. Phase Shifter. 08609_ H-88 Terminator destroyed. 08622_ Used Protomatter to restore core integrity (+285, depleted) 08630_ Sneak attack on T-07 Excavator. 08630_ Destroyed Mining Laser. 08630_ Destroyed Lgt. Ion Engine. 08630_ Destroyed Wheel. 08630_ Destroyed Imp. Terrain Scanner. 08630_ Destroyed Wheel. 08630_ T-07 Excavator destroyed. 08653_ The unstable cave ceiling collapses. 08653_ Crushed by falling debris. 08682_ U-05 Engineer builds a Wall. 08690_ EXIT=FOUND: SURFACE 08693_ Connecting with Terminal... >>Open Sealed Barrier opened. 08695_ The Access Shell folds into the floor. Map ----- +----------------------------------------------------+ | ????????????##??#?##?? ? # # | | ????????????????#?##?? ? # = # | | ??????????????#?????#########?+############# | | ??????????????????????# ? | | ??????????????????????# ?? !! | | ????????????????????????? ? !! | | ?????????????????????????? ?? ? !! | | ????????????????????????? ##########+############ | | ???????????????????????? ???####?#? ########### | | ??????????????????#???? ???#?####? # # | | ???????????????????? ??? ? ?#### #? # | | ?????????????#????????? ????? #### ? # " # | | ??????????????#?###? ?? ??### # "" # | | ????????????#?#???## ? ?? ? ???# # "" ? # | | ??????????? ?#?#??## ? ???# ?? ?? ????????? | | ?????????????#?#?#?# ??? ?????#??? ????????????? | | ??????????? ?????### ?? ?##?##??#??????????? | | ????????#??####?###?"?""""""""#?###?#? ? ????????? | | ????????#?###?#?##?#"?""?"??"??##???? ? ???????? | | ????????#????#??##??""""??"""????###???+?????????? | | ?????????####??#?#?#""""""""""##?###? ??????????? | | ??????#????##??#???# ##?#### ??#?#?#????? | | ??????????####?##??# #?##### ? ??????? | | ??????#####?######## #?##### ?# ????? | | ?????#?#??##?###??## "" ####### # ?????? | | ?????############### "@ ###??## # ?""????? | | ?????#####?##?#?#?## ####### # ?"???? | | ????#???############ ###?### # ? " ?? | | ?????###?##?######## ####### # ? ? | | ???#??#?####?###?### ####### # ? ? | | ?????#??########### ###### ###+#####?? | | ???????? ? ?######"" ####### | | ?????? #######"" ####### ? | | ??????##### #######"" ####### ########### | | ???? ? + #######T ####### ########### | | ?????? ? # #######"" ####?## ########### | | ?? ? # #######"" ####### ########### | | ?? # #######"" ####### # | | ?? ?? ? # # | | ?# ? ?? # + | | ?? ?? ## ################ # " | | ?? ?? ## ################ # """" | | ???? ? ## # """"" | | ??###??##### # """"" | | ?#??#?###?## # """" | | ????####?#?# # " | | #????##??### # | | #??#???##### ######+#########+###### | | ????#????#?# # # ## | | ??????####?####### # ############ | +----------------------------------------------------+ Best States ------------- Heat Dissipation 73 Energy Generation 81 Energy Capacity 1400 Matter Stores 300 Matter Capacity 300 Sight Range 20 Terrain Scan Range 20 Terrain Scan Density 1110 Power Amplification 30 Additional Mass Support 12 Armor Coverage 375 Resistance: KI 65 Resistance: TH 55 Resistance: EX 35 Resistance: EM 35 Resistance: I 35 Resistance: S 35 Resistance: P 35 Power Shielding 66 Utility Shielding 33 Melee Speed Boost 50 Phase Shifting 5 Evasion (%) 77 Targeting Accuracy 6 Force Boost 3 Offensive Hacking 35 Defensive Hacking 5 Item Schematics ----------------- None Robot Schematics ------------------ None Fabricated ------------ K-01 Serf | x1 | -6/Factory | Preloaded Alien Tech Used ----------------- None Achievements -------------- None Challenges ------------ None RPGLIKE | -11 -10 -10 -9 -9 -9 -8 -8 -7 -7 -6 -5 -4 -3 -2 -1 --------- Run | Scr Mat Min Mat Min Exi Min Mat Fac Sto Fac Fac Fac Res Res Acc Levels Raised 33 | . . . 3 1 . 1 2 4 2 4 2 1 2 7 4 XP Earned 56864 | 6000 405 750 4814 916 350 843 3719 5399 3243 5764 2962 1750 2599 10571 6779 XP Spent 55165 | . . 100 . . 7480 . 8210 2300 . 13145 1600 . . 14575 7755 Upgrades 103 | . . 1 . . 16 . 15 1 . 34 4 . . 23 9 Power Slot 2 | . . . . . 1 . . . . 1 . . . . . Propulsion Slot 1 | . . . . . 1 . . . . . . . . . . Utility Slot 10 | . . . . . 5 . 1 1 . 2 . . . 1 . Weapon Slot 2 | . . . . . 1 . . . . . . . . 1 . Core Integrity 18 | . . . . . 8 . . . . 10 . . . . . Heat Dissipation 8 | . . . . . . . 8 . . . . . . . . Energy Generation 7 | . . . . . . . . . . . . . . 4 3 Energy Storage 19 | . . . . . . . . . . 7 . . . 9 3 Mass Support 1 | . . 1 . . . . . . . . . . . . . Inventory Capacity 6 | . . . . . . . 6 . . . . . . . . Sight Range 4 | . . . . . . . . . . . 4 . . . . Terrain Scan Density 11 | . . . . . . . . . . 8 . . . . 3 Melee Accuracy 2 | . . . . . . . . . . 2 . . . . . Hack Attack % 3 | . . . . . . . . . . 3 . . . . . Hack Defense % 1 | . . . . . . . . . . 1 . . . . . KI Resistance % 4 | . . . . . . . . . . . . . . 4 . TH Resistance % 4 | . . . . . . . . . . . . . . 4 . Protomatter Created 5533 | . . . 45 13 . . 171 480 452 791 181 80 . 1599 1721 Integrity Restored 10515 | . . 77 . . . . 318 1089 1535 1722 344 173 . 1793 3464 Core 8289 | . . 77 . . . . 318 1089 1043 1301 230 115 . 1495 2621 Parts 2226 | . . . . . . . . . 492 421 114 58 . 298 843 Protomatter Decayed 1517 | . . 81 14 . . . 75 71 . 190 77 . . 653 356 Game ------ Seed ImpactCannonCoupler Manual? 0 Play Time 02:10:02 Cumulative 285.8 hours Start 2021.10.04 @ 13:59:08 End 2021.10.05 @ 01:54:00 Sessions 3 Manual Loads 0 Difficulty Explorer Special Mode Winter2019/RPGLIKE Game No. 84 Rogue 0 Adventurer 0 Explorer 84 Win Type 0 Total 26 Types 15/3/1/1/1/2/1/2/0 Lore% 72 Gallery% 85 Achievement% 80 Wizard Run 0 Options --------- ASCII 1 Keyboard 0 Movement Mouse Keybinds 0 Fullscreen 2 Font 18/SmallcapsGlow Map View 76x50 Tactical HUD 1 Map Filters NONE Filters NONE Steam 1 RUN: 43251b3c-0071-42a9-8156-1f6f01f0f692